Cogmind - Beta 13 @@@ ROGUE MODE // 2024.05.15 @ 12:47:40 Player: Nebula avali Result: Destroyed by BW-BCE(R) with Subdweller Laser Performance ------------- Evolutions (0) 0 Regions Visited (2) 400 Robots Destroyed (24) 120 Value Destroyed (682) 682 Prototype IDs (0) 0 Alien Tech Used (0) 0 Bonus (0) 0 TOTAL SCORE: 1202 Bonus ------- None Cogmind --------- Core Integrity 0/250 Matter 300/300 Energy 125/125 System Corruption 0% Temperature Cool (6) Movement Treading (240) Ox1 Location -10/Subcaves Parts ------- > --- POWER (1) -------- Light Ion Engine > --- PROPULSION (2) --- Light Treads Light Treads > --- UTILITY (2) ------ High-capacity Storage Unit Medium Armor Plating > --- WEAPON (2) ------- Slug Cannon Hammer > --- INVENTORY (20) --- Wheel Subdweller Monowheel Sensor Array Signal Interpreter Seismic Detector Transport Network Coupler Medium Armor Plating Medium Armor Plating Medium Armor Plating Scrap Shield Riot Gun Small Laser Spread Laser Spread Laser Spread Laser Spread Laser Heavy Battle Rifle Grenade Launcher Piercing Trap Peak State ------------ > --- POWER ------------ Light Ion Engine > --- PROPULSION ------- Light Treads Light Treads > --- UTILITY ---------- High-capacity Storage Unit Medium Armor Plating > --- WEAPON ----------- Riot Gun Slug Cannon > --- INVENTORY -------- Light Ion Engine Wheel Sensor Array Signal Interpreter Seismic Detector Transport Network Coupler Medium Armor Plating Medium Armor Plating Medium Armor Plating Small Laser Spread Laser Spread Laser Spread Laser Spread Laser Grenade Launcher Hammer Piercing Trap [Rating: 15] Favorites ----------- Power Ion Engine Engine Ion Engine Propulsion Light Treads Treads Light Treads Leg Aluminum Leg Wheel Wheel Utility High-capacity Storage Unit Storage High-capacity Storage Unit Processor Improved Targeting Computer Protection Medium Armor Plating Weapon Medium Laser Energy Gun Medium Laser Ballistic Gun Assault Rifle Ballistic Cannon Slug Cannon Impact Weapon Hammer Slashing Weapon Mining Claw Build | -11 -10 -10 ------- Run | Yrd Mat Sub Slots Evolved . | . . . Power . | . . . Propulsion . | . . . Utility . | . . . Weapon . | . . . Parts Attached 21 | . 8 13 Power 3 | . . 3 Engine 3 | . . 3 Core . | . . . Reactor . | . . . Propulsion 5 | . 3 2 Treads 2 | . . 2 Leg . | . . . Wheel 3 | . 3 . Hover . | . . . Flight . | . . . Utility 6 | . 4 2 Device . | . . . Storage 2 | . 2 . Processor 2 | . 2 . Hackware . | . . . Protection 2 | . . 2 Artifact . | . . . Weapon 7 | . 1 6 Energy Gun 2 | . 1 1 Energy Cannon . | . . . Ballistic Gun 1 | . . 1 Ballistic Cannon 1 | . . 1 Launcher . | . . . Special Weapon . | . . . Impact Weapon 2 | . . 2 Slashing Weapon 1 | . . 1 Piercing Weapon . | . . . Special Melee Weapon . | . . . Unidentified Prototypes . | . . . Parts Lost 6 | . 2 4 Power 1 | . . 1 Propulsion 2 | . 1 1 Utility . | . . . Weapon 3 | . 1 2 Highest Loss Streak 2 | . 2 2 To Critical Strikes . | . . . Average Slot Usage (%) 90 | . 88 91 Engine 10 | . 14 8 Treads 15 | . . 24 Wheel 8 | . 17 3 Storage 14 | . 14 14 Processor 9 | . 12 8 Protection 3 | . . 5 Energy Gun 17 | . 22 15 Ballistic Gun 3 | . 5 2 Ballistic Cannon 3 | . . 5 Naked Turns . | . . . Heaviest Build 88 | 13 88 59 Greatest Support 40 | 20 20 40 Greatest Overweight (x) 8 | . 8 4 Average Overweight (x) 2 | . 3 1 Largest Inventory Capacity 25 | . 25 20 Average Capacity 20 | . 21 20 Most Carried 20 | . 19 20 Average Carried 17 | . 14 19 Final Capacity 20 | 8 20 20 Final Carried 20 | 6 19 20 Class Distribution -------------------- 100% | Mutant Dominant Class ---------------- Mutant | -10/Materials Mutant | -10/Subcaves Resources | -11 -10 -10 ----------- Run | Yrd Mat Sub Matter Collected 589 | 200 202 187 Remotely . | . . . Salvage Created 857 | . 597 260 Parts 58 | . 34 24 Haulers Intercepted 2 | . 2 . Recyclers Shooed 1 | . 1 . Parts Field Recycled . | . . . Retrieved Matter . | . . . Parts Self-Destructed 10 | . . 10 Prevented 1 | . . 1 Kills | -11 -10 -10 ------- Run | Yrd Mat Sub Combat Hostiles Destroyed 18 | . 9 9 Melee 1 | . . 1 Guns 14 | . 9 5 Cannons 1 | . . 1 Classes Destroyed 7 | . 4 3 Hauler 2 | . 2 . Operator 1 | . 1 . Watcher 3 | . 3 . Swarmer 3 | . . 3 Grunt 10 | . 9 1 Sentry 1 | . . 1 Subdweller 4 | . . 4 Best Kill Streak 5 | . 5 3 Combat Bots Only 3 | . 2 3 Max Kills in Single Turn 1 | . 1 1 Gunslinging . | . . . Exploded . | . . . Melee 1 | . . 1 Uniques/NPCs Destroyed . | . . . Combat | -11 -10 -10 -------- Run | Yrd Mat Sub Hostile Shots Fired 101 | . 59 42 Missed 32 | . 20 12 Damage Taken 1156 | . 510 646 Core 252 | . 131 121 Absorbed by Shields . | . . . Regen/Repaired (Parts) 13 | . 13 . Core Remaining (%) 100 | 100 . . Volleys Fired 150 | . 58 92 Largest 2 | . 2 2 Hottest 98 | . 90 98 Shots Fired 288 | . 114 174 Gun 278 | . 114 164 Cannon 10 | . . 10 Launcher . | . . . Special . | . . . Kinetic 63 | . 45 18 Thermal 208 | . 69 139 Explosive . | . . . Electromagnetic 17 | . . 17 Robot Hit Streak 14 | . 12 14 Robot Miss Streak 5 | . 5 5 Penetration Max . | . . . Secondary Targets 2 | . 1 1 Max Gunslinging Chain 1 | . 1 1 Shots Hit Robots 105 | . 76 29 Core Hits 45 | . 32 13 Critical Kills . | . . . Critical Parts Destroyed 1 | . . 1 Critical Strikes 3 | . . 3 Burn 1 | . . 1 Destroy 1 | . . 1 Smash 1 | . . 1 Melee Attacks 26 | . . 26 Impact 24 | . . 24 Slashing 2 | . . 2 Piercing . | . . . Sneak Attacks . | . . . Combat Hostiles . | . . . Follow-up Attacks . | . . . Damage Inflicted 1492 | . 985 507 Guns 1281 | . 951 330 Cannons 45 | . . 45 Explosions 56 | . . 56 Melee 76 | . . 76 Ramming 34 | . 34 . Kinetic 474 | . 344 130 Thermal 714 | . 607 107 Explosive . | . . . Electromagnetic 194 | . . 194 Impact 76 | . . 76 Slashing . | . . . Piercing . | . . . Highest Corruption . | . . . Average Corruption . | . . . Corruption Purged . | . . . Corruption Blocked . | . . . Overload Shots . | . . . Overflow Damage 16 | . . 16 Projectiles . | . . . Explosions . | . . . Melee 16 | . . 16 Knockbacks 2 | . . 2 Impact 2 | . . 2 Kinetic . | . . . Secondary . | . . . Self-Inflicted Damage 34 | . 16 18 Shots 1 | . . 1 Rammed 4 | . 4 . Targets Rammed 4 | . 4 . Kicked . | . . . Crushed . | . . . Highest Temperature 286 | . 286 2 Average Temperature 68 | . 68 2 Received Heat Transfer 378 | . 279 99 Siege Activations . | . . . Robots Corrupted 1 | . . 1 Combat Hostiles 1 | . . 1 Parts Fried 1 | . . 1 Impact Corruptions 1 | . . 1 Robots Melted . | . . . Combat Hostiles . | . . . Parts Melted 5 | . 3 2 Heat Transferred 1755 | . 1433 322 Parts Sabotaged . | . . . Parts Stolen . | . . . Parts Stripped . | . . . Power Chain Reactions 1 | . . 1 Alert | -11 -10 -10 ------- Run | Yrd Mat Sub Peak Influence 164 | . 164 . Initial . | . . . Average 60 | . 60 . Maximum Alert Level . | . . . Low Security (%) 100 | . 100 . Level 1 . | . . . Level 2 . | . . . Level 3 . | . . . Level 4 . | . . . Level 5 . | . . . High Security . | . . . Max Security . | . . . Squads Dispatched 1 | . 1 . Investigation . | . . . Extermination . | . . . Reinforcement 1 | . 1 . Assault . | . . . Garrison . | . . . Intercept . | . . . Searches Triggered . | . . . Construction Impeded . | . . . Haulers Reinforced . | . . . Active Scanning Responses . | . . . Cargo Convoy Interrupts . | . . . Stealth | -11 -10 -10 --------- Run | Yrd Mat Sub Distress Signals 1 | . 1 . Communications Jammed . | . . . Distress Signals . | . . . Times Spotted 28 | . 18 10 Peak Tracking Total 3 | . 3 3 Tactical Retreats 1 | . 1 . Traps | -11 -10 -10 ------- Run | Yrd Mat Sub Traps Triggered 4 | . . 4 Indirectly . | . . . Trap Hack Attempts . | . . . Triggered . | . . . Disarmed . | . . . Reprogrammed . | . . . Reused . | . . . Traps Extracted . | . . . Installed . | . . . Triggered . | . . . Most Traps Carried 1 | . . 1 Machines | -11 -10 -10 ---------- Run | Yrd Mat Sub Machines Disabled . | . . . Max in Single Turn . | . . . Machines Repaired . | . . . Machines Dismantled . | . . . Machines Sabotaged . | . . . Overloaded Fab Kills . | . . . Hacking | -11 -10 -10 --------- Run | Yrd Mat Sub Machines Accessed 7 | . 7 . Terminals 5 | . 5 . Fabricators . | . . . Repair Stations 1 | . 1 . Recycling Units 1 | . 1 . Scanalyzers . | . . . Garrison Access . | . . . Total Hacks 12 | . 12 . Successful 8 | . 8 . Failed 4 | . 4 . Catastrophic 1 | . 1 . Database Lockouts . | . . . Manual 9 | . 9 . Terminals 8 | . 8 . Fabricators . | . . . Repair Stations 3 | . 3 . Recycling Units 1 | . 1 . Scanalyzers . | . . . Garrison Access . | . . . Terminal Hacks . | . . . Fabricator Hacks . | . . . Repair Station Hacks 2 | . 2 . Scan Component 1 | . 1 . Repair 1 | . 1 . Recycling Unit Hacks . | . . . Scanalyzer . | . . . Garrison Access Hacks . | . . . Unauthorized Hacks 6 | . 6 . Terminals 5 | . 5 . Track 3 | . 3 . Botnet 2 | . 2 . Fabricators . | . . . Repair Stations . | . . . Recycling Units 1 | . 1 . Reject 1 | . 1 . Scanalyzers . | . . . Garrison Access . | . . . Data Cores Recovered . | . . . Used . | . . . Hacking Detections 3 | . 3 . Full Trace Events . | . . . Feedback Events . | . . . Feedback Blocked . | . . . Robot Schematics Acquired . | . . . Robots Built . | . . . Authchips . | . . . Time . | . . . Total Robot Build Rating . | . . . Part Schematics Acquired . | . . . Parts Built . | . . . Authchips . | . . . Time . | . . . Total Part Build Rating . | . . . Parts Repaired 1 | . 1 . Time 26 | . 26 . Parts Recycled . | . . . Recycled Matter . | . . . Retrieved Matter . | . . . Retrieved Components . | . . . Parts Scanalyzed . | . . . Part Schematics Acquired . | . . . Parts Damaged . | . . . Bothacking | -11 -10 -10 ------------ Run | Yrd Mat Sub Used RIF Installer . | . . . Robots Hacked . | . . . Non-combat . | . . . Combat . | . . . Robot Hacks Applied . | . . . Relay Couplers Released . | . . . Fabnet Peak Effective % . | . . . Robots Rewired . | . . . Allies Hacked . | . . . Hacks Repelled . | . . . Allies | -11 -10 -10 -------- Run | Yrd Mat Sub Total Allies . | . . . Largest Group . | . . . Highest-Rated Group . | . . . Highest-Rated Ally . | . . . Total Orders . | . . . Ally Attacks . | . . . Total Damage . | . . . Kills . | . . . Allies Corrupted . | . . . Allies Melted . | . . . Intel | -11 -10 -10 ------- Run | Yrd Mat Sub Robot Analysis Total . | . . . Derelict Logs Recovered 1 | . . 1 Drone Launches . | . . . Drone Recoveries . | . . . Exploration | -11 -10 -10 ------------- Run | Yrd Mat Sub Turns Passed 3756 | . 1350 2406 Spaces Moved 1482 | 1 530 951 Core . | . . . Treads 694 | . . 694 Legs 31 | 1 30 . Wheels 757 | . 500 257 Hover . | . . . Flight . | . . . Fastest Speed 120 | 120 120 140 Average Speed 187 | 120 141 212 Slowest Speed 240 | 120 200 240 Overloaded Moves . | . . . Propulsion Burnouts . | . . . Robots Hopped . | . . . Cave-ins Triggered . | . . . Exploration Rate (%) 52 | 2 86 68 Regions Visited 2 Branch Regions 1 Pre-discovered Areas . | . . . Known Exits Taken . | . . . Unknown Exits Taken 2 | 1 1 . Scrap Searched 5 | . . 5 Spaces Dug . | . . . Terrain Destroyed 7 | . . 7 Melee . | . . . Projectile 2 | . . 2 AOE 5 | . . 5 Terrain Rammed . | . . . Walls Destroyed . | . . . Machines Disabled . | . . . Actions | -11 -10 -10 --------- Run | Yrd Mat Sub Total 2129 | . 1017 1112 Wait 405 | . 393 12 Move 1480 | . 529 951 Hop . | . . . Pick Up 25 | . 16 9 Fast Attach 7 | . 5 2 Attach 13 | . 3 10 Detach 8 | . 5 3 Swap 1 | . . 1 Drop 10 | . 4 6 Fire 150 | . 58 92 Melee 26 | . . 26 Ram 4 | . 4 . Kick . | . . . Crush . | . . . Escape Stasis . | . . . Rewire . | . . . Trap . | . . . Miscellaneous . | . . . Route ------- -11/Scrapyard -10/Materials (discovered 4 exits: [*Mat x2] / [*Min] / [*Sub]) -10/Subcaves (discovered 2 exits: [*Mat x2]) History --------- Turn | Location | Event 1 | -11/Scrapyard | Discovered new exit (range 0) 1 | -11/Scrapyard | Entered Materials 307 | -10/Materials | Repaired Wheel 328 | -10/Materials | Build established: Mutant 349 | -10/Materials | Discovered new exit (range 3) 824 | -10/Materials | Discovered new exit (range 12) 837 | -10/Materials | Core integrity fell below 50% 867 | -10/Materials | Discovered new exit (range 9) 1325 | -10/Materials | Discovered new exit (range 5) 1351 | -10/Materials | Entered Subcaves 1399 | -10/Subcaves | Shifting Twisted Machinery released Sub. Machine Gun 1421 | -10/Subcaves | Shifting Twisted Machinery released Piercing Trap 2303 | -10/Subcaves | Shifting Twisted Machinery released Riot Gun 2310 | -10/Subcaves | Shifting Twisted Machinery released Slug Cannon 2310 | -10/Subcaves | Discovered new exit (range 10) 2741 | -10/Subcaves | Core integrity fell below 20% 3033 | -10/Subcaves | Shifting Twisted Machinery released Scrap Shield 3043 | -10/Subcaves | Shifting Twisted Machinery released Sub. Shrapnel Launcher 3446 | -10/Subcaves | Discovered new exit (range 5) 3757 | -10/Subcaves | Destroyed by BW-BCE(R) with Subdweller Laser Last Messages --------------- 03451_ Subatomizers dissect the Corrupted Lgt. Treads. 03452_ Corrupted Lgt. Treads self-destruct mechanism malfunctions. 03567_ Dropped Riot Gun. 03568_ Acquired Riot Gun. 03569_ Dropped Med. Armor Plating. 03570_ Acquired Med. Armor Plating. 03669_ 4X-9UP(R) destroyed. 03685_ CA-JMW(R) knocked back. 03686_ Subatomizers dissect the Sub. Optics. 03690_ Acquired 20 matter. 03693_ CA-JMW(R) suffers critical hit (Smash). 03693_ Destroyed Sub. Optics. 03693_ CA-JMW(R) system corrupted by crushing effect. 03693_ CA-JMW(R) knocked back. 03694_ CA-JMW(R) system terminally corrupted. 03694_ Sub. Laser fried. 03697_ Acquired 10 matter. 03698_ Subatomizers dissect the Sub. Optics. 03700_ Acquired Sub. Monowheel. 03746_ Subatomizers dissect the Sub. Optics. Map ----- +----------------------------------------------------+ | ?????????????????????????????????????????????????? | | ?????????????????????????????????????????????????? | | ?????????????????????????????????????????????????? | | ?????????????????????????????????????????????????? | | ?????????????????????????????????????????????????? | | ?????????????????????????????????????????????????? | | ?????????????????????????????????????????????????? | | ?????????????????????????????????????????????????? | | ?????????????????????????????????????????????????? | | ?????????????????????????????????????????????????? | | ?????????????????????????????????????????????????? | | ?????????????????????????????????????????????????? | | ?????????????????????????????????????????????????? | | ?????????????????????????????????????????????????? | | ?????????????????????????????????????????????????? | | ?????????????????????????????????????????????????? | | ???????????????##?????????????????# ????????????? | | ???????????????# ????????????????# "???????????? | | ??????????????? ???????????????? ???????????? | | ???????????????# ????????????????? ???????????? | | ???????????????# ?????????????????# ???????????? | | ?????????????### ????????????????## ##?????????? | | ?????????????? ???????????????# #?????????? | | ??????????????? ??????######""### #?????????? | | ???????????????? #????## # """??"" "##????????? | | ????????????????? # ?###@"" """?"""""""##??####?? | | ?????????????????# ?# # #"#""????# " "#### #?? | | ????????????#???## ## R #???###??## " ## #??# | | ????????????# ## #### #??##"##### "" ##?# | | ????????????# #### #### " #"# """" #?# | | ?????????????# ####%![ """"" #?# | | ?????????????# ## #&* """""" """""### ### | | ?????????????## ???### &&%=& ""##"######?# # | | ?????????????????????## #####""""####?????## | | ??????????????????????###???##""##????????# | | ?????????????????????????????####?????????# | | ??????????????????????????????????????????### | | ????????????????????????????????????????????## | | ?????????????????????????????????????????????##### | | ?????????????????????????????????????????????????? | | ?????????????????????????????????????????????????? | | ?????????????????????????????????????????????????? | | ?????????????????????????????????????????????????? | | ?????????????????????????????????????????????????? | | ?????????????????????????????????????????????????? | | ?????????????????????????????????????????????????? | | ?????????????????????????????????????????????????? | | ?????????????????????????????????????????????????? | | ?????????????????????????????????????????????????? | | ?????????????????????????????????????????????????? | +----------------------------------------------------+ Best States ------------- Heat Dissipation 25 Energy Generation 15 Energy Capacity 250 Matter Stores 300 Matter Capacity 300 Sight Range 18 Terrain Scan Density 10 Armor Coverage 225 Evasion (%) 55 Targeting Accuracy 6 Recoil Reduction 2 Item Schematics ----------------- None Robot Schematics ------------------ None Fabricated ------------ Nothing Alien Tech Used ----------------- None Achievements -------------- None Challenges ------------ None Game ------ Seed VariableFortressStick Manual? 0 Play Time 00:18:12 Cumulative 68.0 hours Start 2024.05.15 @ 12:29:26 End 2024.05.15 @ 12:47:40 Sessions 1 Manual Loads 0 Difficulty Rogue Special Mode None Game No. 106 Rogue 105 Adventurer 1 Explorer 0 Win Type - Total 3 Types 3/0/0/0/0/0/0/0/0 Lore% 29 Gallery% 58 Achievement% 50 Wizard Run 0 Options --------- Layout 0 ASCII 0 Keyboard 0 Movement Numpad Keybinds 0 Fullscreen 1 Font 18/SmallcapsGlow Map View 76x50 Zoom Use 0% Tactical HUD 1 Map Filters NONE Filters NONE Steam 1 RUN: 1e6db3e4-f731-42c4-8d14-4b2775448a75